bitfinex-derivatives/quotes_ETHF0:USTF0_20250104
["timestamp","ask_amount","ask_price","bid_price","bid_amount"]
[1736008588972,3.25669564,3612.9,3612.7,0.27683]
[1736008589176,3.25669564,3612.9,3612.7,4.23683]
[1736008590276,3.25669564,3612.9,3612.8,0.27683]
[1736008590477,3.25669564,3612.9,3612.8,4.43683]
[1736008590678,3.2078,3613.5,3613.4,0.27678]
[1736008590879,3.2078,3613.5,3613.4,3.72]
[1736008591577,3.48458,3613.5,3613.4,3.72]
[1736008591772,3.2078,3613.5,3613.4,3.72]
[1736008592168,3.48458,3613.5,3613.4,3.72]
[1736008593571,4.20448,3613.5,3613.4,3.72]
[1736008594972,3.48458,3613.5,3613.4,3.72]
[1736008597676,4.3558,3613.5,3613.4,3.72]
[1736008597875,3.2078,3613.5,3613.4,3.99678]
[1736008598180,3.25669564,3613.9,3613.4,5.8421]
[1736008598377,3.25669564,3613.9,3613.8,0.27675]
[1736008598574,3.25669564,3613.9,3613.8,3.53]
[1736008599171,3.53344564,3613.9,3613.8,3.53]
[1736008599479,0.27675,3613.9,3613.8,3.53]
[1736008600983,1.01295,3613.9,3613.8,3.53]
[1736008603474,1.01295,3613.9,3613.8,2.73380001]
[1736008603475,3.10516188,3613.9,3613.8,2.73380001]
[1736008603687,3.10516188,3613.9,3613.8,1.94960001]
[1736008603987,0.27681,3613.1,3612.9,0.7201]
[1736008604187,0.27681,3613.1,3612.9,4.6001]
[1736008604874,4.3558,3613.4,3612.9,4.6001]
[1736008605080,0.27679,3613.3,3613.0,0.27681]
[1736008605385,0.27679,3613.3,3613.1,0.27681]
[1736008605588,0.27679,3613.3,3613.1,4.30681]
[1736008606478,1.148,3613.4,3613.3,0.27679]
[1736008606681,3.25669564,3613.8,3613.7,0.27676]
[1736008606988,3.2078,3613.9,3613.7,3.31]
[1736008606989,6.74124564,3613.9,3613.7,3.31]
[1736008607181,6.46449564,3613.9,3613.7,3.31]
[1736008607383,6.74124564,3613.9,3613.7,3.31]
[1736008607880,0.27675,3613.8,3613.7,3.31]
[1736008608482,1.73815,3613.8,3613.7,3.31]
[1736008610792,0.27675,3613.8,3613.7,3.31]
[1736008610991,4.3558,3613.9,3613.7,3.31]
[1736008611177,4.3558,3613.9,3613.7,3.58676]
[1736008611585,4.3558,3613.9,3613.7,3.31]
[1736008611780,4.3558,3613.9,3613.8,0.27675]
[1736008611987,4.3558,3613.9,3613.8,4.92795]
[1736008612589,1.148,3613.9,3613.8,4.92795]
[1736008613192,3.2078,3614.3,3613.8,4.6512]
[1736008613489,0.27673,3614.2,3613.9,0.27674]
[1736008613691,0.27673,3614.2,3613.9,4.05674]
[1736008613891,3.2078,3614.3,3613.9,4.05674]
[1736008614094,0.27673,3614.1,3613.9,4.05674]
[1736008614390,0.27673,3614.1,3613.9,3.78]
[1736008615496,0.27673,3614.1,3613.9,4.05674]
[1736008617294,0.27672,3614.2,3613.9,4.05674]
[1736008618090,3.2078,3614.3,3613.9,3.78]
[1736008618295,3.25669564,3614.6,3614.5,0.2767]
[1736008618497,3.9326,3614.7,3614.6,0.27669]
[1736008618498,3.25669564,3614.7,3614.6,0.27669]
[1736008618794,3.25669564,3614.7,3614.6,4.89079]
[1736008619997,0.27667,3614.9,3614.7,0.27668]
[1736008620195,5.99166188,3615.1,3614.7,3.53]
[1736008620394,1.77588,3614.8,3614.7,3.53]
[1736008620602,3.86809188,3614.8,3614.7,3.53]
[1736008621402,44.66809188,3614.8,3614.7,3.53]
[1736008621597,5.01609188,3614.8,3614.7,3.53]
[1736008621988,45.81609188,3614.8,3614.7,3.53]
[1736008622188,5.01609188,3614.8,3614.7,3.53]
[1736008622388,0.27674,3614.0,3613.8,4.31349163]
[1736008622592,0.27674,3614.0,3613.8,5.85349163]
[1736008622795,0.27674,3614.0,3613.8,1.54]
[1736008623192,3.48453,3614.1,3613.8,1.81675]
[1736008623588,3.2078,3614.1,3613.8,1.54]
[1736008623789,3.2078,3614.1,3613.9,0.27675]
[1736008623994,3.2078,3614.1,3614.0,0.27674]
[1736008624192,3.2078,3614.1,3614.0,0.77674]
[1736008624993,0.27672,3614.2,3614.0,0.77674]
[1736008625193,3.25669564,3614.6,3614.0,0.5]
[1736008625400,4.67538564,3614.7,3614.5,0.2767]
[1736008625593,4.67538564,3614.7,3614.5,0.7067]
[1736008625891,4.39869564,3614.7,3614.5,0.7067]
[1736008626094,4.67538564,3614.7,3614.5,0.7067]
[1736008626602,3.25669564,3614.7,3614.6,0.27669]
[1736008626791,4.3498,3614.9,3614.6,4.04]
[1736008626994,0.27668,3614.7,3614.6,4.04]
[1736008628398,1.06378,3614.7,3614.6,4.04]
[1736008629298,0.7251,3614.8,3614.6,4.31669]
[1736008629299,0.27668,3614.8,3614.6,4.31669]
[1736008629495,0.27668,3614.8,3614.6,4.04]
[1736008629694,3.2078,3614.9,3614.6,4.04]
[1736008629695,6.46449564,3614.9,3614.6,4.04]
[1736008629995,6.74116564,3614.9,3614.7,0.27668]
[1736008630200,6.74116564,3614.9,3614.7,4.65668]
[1736008630605,6.46449564,3614.9,3614.7,4.65668]
[1736008631202,3.2078,3614.9,3614.7,4.65668]
[1736008631797,3.2078,3614.9,3614.7,4.38]
[1736008632103,3.2078,3614.9,3614.8,0.27668]
[1736008632307,3.2078,3614.9,3614.8,2.65668]
[1736008633302,6.46449564,3615.3,3615.2,0.27665]
[1736008633597,6.46449564,3615.3,3615.2,3.12665]
[1736008634101,1.3218,3615.3,3615.2,4.67865]
[1736008634293,3.25669564,3615.6,3615.2,4.67865]
[1736008634294,3.25669564,3615.6,3615.5,0.27662]
[1736008634499,3.25669564,3615.6,3615.5,6.38883188]
[1736008635302,3.25669564,3615.6,3615.5,4.02]
[1736008635504,0.27662,3615.6,3615.5,4.02]
[1736008635709,1.41762,3615.6,3615.5,4.02]
[1736008635910,2.15512,3615.6,3615.5,4.02]
[1736008636411,42.95512,3615.6,3615.5,4.02]
[1736008636708,2.15512,3615.6,3615.5,4.02]
[1736008637100,4.32206475,3615.6,3615.5,4.02]
[1736008638103,4.04544475,3615.6,3615.5,4.02]
[1736008638407,1.01412,3615.6,3615.5,4.02]
[1736008639904,4.39769564,3615.7,3615.5,4.02]
[1736008640112,1.141,3615.7,3615.6,0.27662]
[1736008640302,1.141,3615.7,3615.6,0.92662]
[1736008640609,2.16594943,3615.8,3615.6,0.92662]
[1736008640810,2.16594943,3615.8,3615.7,0.27661]
[1736008641108,3.2078,3615.9,3615.7,2.29]
[1736008641308,0.2766,3615.8,3615.7,2.29]
[1736008642408,0.2766,3615.8,3615.7,2.11916281]
[1736008642610,0.27665,3615.3,3615.0,0.27666]
[1736008642804,0.27665,3615.3,3615.0,1.45666]
[1736008644610,1.77174,3615.4,3615.1,0.27665]
[1736008644810,1.77174,3615.4,3615.1,2.22665]
[1736008645809,0.00180582,3615.6,3615.5,0.27662]
[1736008646114,0.00180582,3615.6,3615.5,6.63883188]
[1736008649608,0.00180582,3615.6,3615.5,11.63883188]
[1736008649808,2.16594943,3616.4,3615.5,11.36221188]
[1736008650006,2.16594943,3616.4,3616.3,0.27656]
[1736008650211,2.16594943,3616.4,3616.3,3.54656]
[1736008650712,0.27655,3616.5,3616.4,0.27655]
[1736008650917,0.27655,3616.5,3616.4,3.53655]
[1736008651106,0.27655,3616.5,3616.4,3.26]
[1736008654010,0.27655,3616.5,3615.8,0.2766]
[1736008654212,0.27659,3616.0,3615.8,1.1166]
[1736008654420,1.5159,3615.9,3615.8,1.1166]
[1736008655410,0.7978,3616.4,3615.8,0.84]
[1736008655616,0.27658,3616.1,3615.9,0.27659]
[1736008655819,1.4737,3616.3,3615.9,0.27659]
[1736008655820,1.4737,3616.3,3615.9,2.68221188]
[1736008656118,5.37374943,3616.6,3616.5,0.27655]
[1736008656316,2.16594943,3616.6,3616.5,5.94876188]
[1736008657016,1.4737,3616.9,3616.5,5.67221188]
[1736008657216,2.16594943,3617.1,3617.0,0.27651]
[1736008657517,2.16594943,3617.1,3617.0,2.1]
[1736008657915,2.16594943,3617.1,3617.0,2.37651]
[1736008658123,2.16594943,3617.1,3617.0,2.1]
[1736008658819,3.2078,3617.4,3617.2,0.27649]
[1736008659021,2.88817,3617.5,3617.2,0.51649]
[1736008659818,2.6117,3617.5,3617.3,0.27648]
[1736008660022,2.6117,3617.5,3617.3,0.03]
[1736008660523,2.6117,3617.5,3616.8,2.09221188]
[1736008660524,0.27648,3617.4,3617.1,0.2765]
[1736008660821,0.27648,3617.4,3617.1,1.3965]
[1736008661223,1.4737,3617.5,3617.1,1.12]
[1736008661624,1.4737,3617.5,3617.4,0.27648]
[1736008661918,1.4737,3617.5,3617.4,1.13]
[1736008662126,1.4737,3617.5,3617.4,1.40648]
[1736008663123,0.7426,3617.5,3617.4,1.40648]
[1736008663328,1.137,3617.7,3617.6,0.27646]
[1736008663524,1.137,3617.7,3617.6,1.99646]
[1736008664025,4.0409,3617.8,3617.6,1.99646]
[1736008664222,4.0409,3617.8,3617.6,1.72]
[1736008664427,4.0409,3617.8,3617.7,0.27646]
[1736008664629,3.2078,3617.8,3617.7,4.00867188]
[1736008664929,2.16594943,3618.3,3618.2,0.27642]
[1736008665121,2.16594943,3618.3,3618.2,0.31642]
[1736008666330,2.16594943,3618.3,3618.2,0.04]
[1736008666528,0.27641,3618.3,3618.2,0.04]
[1736008667831,0.27641,3618.3,3617.4,3.2678]
[1736008667832,0.69105,3618.2,3617.1,2.09221188]
[1736008668026,0.69105,3618.2,3617.1,5.78221188]
[1736008668027,5.99106188,3618.2,3617.1,5.78221188]
[1736008668227,0.27646,3617.7,3617.3,0.27648]
[1736008668427,0.8017,3617.6,3617.3,0.92]
[1736008668628,0.8017,3617.6,3617.5,0.27647]
[1736008668824,0.8017,3617.6,3617.5,0.21]
[1736008669534,0.8017,3617.6,3617.5,0.48647]
[1736008671141,2.23962,3618.1,3617.8,0.27644]
[1736008671337,3.01662,3618.1,3617.8,0.37644]
[1736008671740,2.7402,3618.1,3617.8,0.1]
[1736008671941,1.6032,3618.1,3617.9,0.27644]
[1736008672239,1.04991,3618.3,3618.0,0.27643]
[1736008672538,0.777,3618.2,3618.0,0.03]
[1736008673838,0.777,3618.2,3618.0,0.30643]
[1736008674135,1.05342,3618.2,3618.0,0.03]
[1736008674440,3.2078,3618.6,3618.0,0.03]
[1736008674736,2.16594943,3618.8,3618.3,2.09221188]
[1736008674944,2.16594943,3618.8,3618.3,4.53862188]
[1736008674945,0.27638,3618.7,3618.3,4.53862188]
[1736008675145,1.09078,3618.7,3618.3,2.44641]
[1736008675332,0.27639,3618.6,3618.3,2.17]
[1736008675530,0.2764,3618.5,3618.3,2.17]
[1736008676042,0.7924,3618.4,3618.3,2.17]
[1736008676249,0.7924,3618.4,3618.3,2.44641]
[1736008677932,0.8144,3618.7,3618.3,2.17]
[1736008678136,0.8145,3618.8,3618.7,0.27638]
[1736008678341,0.8145,3618.8,3618.7,0.30638]
[1736008679045,0.835,3619.0,3618.7,0.03]
[1736008679241,0.835,3619.0,3618.9,0.27636]
[1736008679442,0.835,3619.0,3618.9,4.88857188]
[1736008679639,2.16594943,3619.6,3619.5,0.27632]
[1736008679847,2.99104943,3619.6,3619.5,0.78632]
[1736008680538,2.16594943,3619.6,3619.5,0.78632]
[1736008680835,2.16594943,3619.6,3619.5,2.87853188]
[1736008681840,4.0329,3619.9,3619.6,0.27631]
[1736008682042,4.0329,3619.9,3619.6,0.12]
[1736008682344,4.30919,3619.9,3619.6,0.39631]
[1736008682541,4.0329,3619.9,3619.6,0.39631]
[1736008682747,4.0329,3619.9,3619.8,0.27629]
[1736008682950,3.2078,3619.9,3619.8,2.40850188]
[1736008683743,0.7912,3620.7,3619.8,5.34001188]
[1736008683945,0.7912,3620.7,3620.4,0.27624]
[1736008684147,0.7912,3620.7,3620.4,0.07]
[1736008684349,0.7912,3620.7,3620.2,2.09221188]
[1736008684549,0.7912,3620.7,3620.2,2.42847188]
[1736008684752,1.06743,3620.7,3620.3,0.27625]
[1736008685043,0.7912,3620.7,3620.3,0.25]
[1736008685250,0.27625,3620.5,3620.3,0.25]
[1736008685648,3.2078,3620.6,3620.3,0.25]
[1736008685846,0.27625,3620.4,3620.3,0.25]
[1736008686146,3.2078,3620.6,3619.6,2.09221188]
[1736008686147,0.2763,3619.8,3619.6,2.09221188]
[1736008686346,0.8086,3619.7,3619.6,2.51221188]
[1736008686547,0.8086,3619.7,3619.6,0.42]
[1736008686737,1.9173,3619.7,3619.6,0.42]
[1736008686946,1.641,3619.7,3619.6,0.42]
[1736008687245,1.9173,3619.7,3619.6,0.42]
[1736008688049,1.641,3619.7,3619.6,0.42]
[1736008688750,1.9173,3619.7,3619.6,0.42]
[1736008690245,1.9173,3619.7,3619.0,3.2078]
[1736008690246,8.73321188,3619.7,3618.3,2.4122]
[1736008690442,8.73321188,3619.7,3618.3,5.2249]
[1736008690443,3.2078,3619.0,3618.3,5.2249]
[1736008690640,0.2764,3618.4,3618.3,3.57]
[1736008690945,0.27642,3618.1,3618.0,2.09221188]
[1736008691148,0.27642,3618.1,3618.0,2.92221188]
[1736008691343,4.3448,3618.6,3618.0,2.92221188]
[1736008691548,0.27642,3618.1,3618.0,2.92221188]
[1736008692347,0.27642,3618.1,3618.0,0.83]
[1736008692548,0.27642,3618.2,3618.0,0.83]
[1736008694041,0.8144,3618.5,3618.0,0.83]
[1736008694243,1.03952,3618.1,3618.0,0.83]
[1736008694440,0.8144,3618.5,3618.0,0.83]
[1736008694645,0.27642,3618.2,3618.0,0.83]
[1736008696050,4.30789,3618.6,3618.2,0.27642]
[1736008696258,4.30789,3618.6,3618.2,3.02642]
[1736008696754,4.0315,3618.6,3618.2,2.75]
[1736008697147,4.0315,3618.6,3618.3,0.27641]
[1736008697356,3.2078,3618.6,3618.4,0.27639]
[1736008697550,3.2078,3618.6,3618.4,3.02009]
[1736008697952,0.27635,3619.1,3618.5,2.64095816]
[1736008698247,0.27635,3619.2,3618.8,0.27637]
[1736008698455,0.27635,3619.2,3618.8,3.24637]
[1736008698851,0.27634,3619.3,3618.9,0.27636]
[1736008699053,0.27634,3619.3,3618.9,1.37636]
[1736008699249,1.137,3619.4,3618.9,1.1]
[1736008699455,0.27636,3619.0,3618.9,1.1]
[1736008701548,0.7836,3619.3,3618.9,1.1]
[1736008701748,0.27636,3619.0,3618.9,1.1]
[1736008702747,3.2078,3619.1,3618.9,1.1]
[1736008702949,0.27635,3619.2,3618.9,1.1]
[1736008703549,0.27636,3619.0,3618.9,1.1]
[1736008705458,1.10086,3619.0,3618.9,1.1]
[1736008706061,0.27634,3619.3,3618.9,1.1]
[1736008706259,1.137,3619.4,3618.9,1.1]
[1736008706260,3.30294943,3619.4,3618.9,1.1]
[1736008706451,1.137,3619.3,3619.2,0.27634]
[1736008706658,1.137,3619.3,3619.2,0.82634]
[1736008707260,2.16594943,3619.4,3619.2,0.82634]
[1736008707454,2.16594943,3619.4,3619.3,0.27633]
[1736008707653,2.16594943,3619.4,3619.3,0.34633]
[1736008707863,3.2078,3619.5,3619.3,0.34633]
[1736008708162,2.98691,3619.6,3619.3,0.34633]
[1736008708361,2.16594943,3619.8,3619.3,0.34633]
[1736008708362,2.16594943,3619.8,3619.3,2.71095816]
[1736008708562,2.16594943,3619.8,3619.7,0.2763]
[1736008708762,2.16594943,3619.8,3619.7,2.8963]
[1736008709370,3.2078,3619.9,3619.7,2.62]
[1736008709570,3.2078,3619.9,3619.8,0.27629]
[1736008709765,3.2078,3619.9,3619.8,4.00629]
[1736008710060,0.7942,3620.1,3620.0,0.27628]
[1736008710263,0.7942,3620.1,3620.0,2.10628]
[1736008710961,1.137,3620.4,3620.2,0.27626]
[1736008711164,1.137,3620.4,3620.2,0.16]
[1736008711165,1.41325,3620.4,3620.2,0.16]
[1736008711560,0.27625,3620.4,3620.2,0.16]
[1736008711763,0.27626,3620.3,3620.2,0.16]
[1736008712063,0.27625,3620.4,3620.2,0.16]
[1736008712667,1.9407,3620.5,3620.2,0.16]
[1736008712963,0.27626,3620.3,3620.2,0.16]
[1736008716167,0.27625,3620.4,3620.2,0.16]
[1736008717062,5.37374943,3620.6,3620.2,2.24408084]
[1736008717267,5.37374943,3620.6,3620.2,0.16]
[1736008717666,0.27624,3620.5,3620.2,0.16]
[1736008717970,0.27624,3620.5,3620.2,0.43626]
[1736008719368,0.27626,3620.4,3620.2,0.16]
[1736008719568,3.2078,3620.6,3620.2,0.16]
[1736008719769,0.27626,3620.3,3620.2,0.16]
[1736008719971,3.2078,3620.6,3620.2,0.16]
[1736008720266,0.00210348,3620.4,3620.2,2.24408084]
[1736008720472,0.00210348,3620.4,3620.2,2.52034084]
[1736008721769,0.00210348,3620.4,3620.3,0.27626]
[1736008721963,0.00210348,3620.4,3620.3,0.77626]
[1736008724570,0.00210348,3620.4,3620.3,1.56126]
[1736008725366,0.00210348,3620.4,3620.3,2.32876]
[1736008725964,2.16594943,3621.0,3620.9,0.27621]
[1736008726275,2.16594943,3621.0,3620.9,6.01029084]
[1736008726973,3.2078,3621.4,3620.9,6.01029084]
[1736008726974,3.2078,3621.4,3620.9,5.73408084]
[1736008727172,3.2078,3621.4,3621.3,2.36026084]
[1736008727369,3.2078,3621.4,3621.3,6.15026084]
[1736008727675,0.27617,3621.5,3621.4,0.27617]
[1736008727875,0.27617,3621.5,3621.4,2.83]
[1736008728372,3.81194943,3621.9,3620.7,2.08408084]
[1736008728373,0.27622,3620.8,3620.7,2.08408084]
[1736008728572,0.27621,3621.0,3620.8,0.27621]
[1736008728770,0.8246,3621.4,3620.8,2.33]
[1736008728976,0.8246,3621.4,3620.8,2.60622]
[1736008729162,0.27621,3621.0,3620.8,2.60622]
[1736008729474,0.27621,3620.9,3620.8,2.33]
[1736008731370,0.27625,3620.4,3620.0,4.0559]
[1736008731568,0.27625,3620.4,3620.1,2.36035084]
[1736008731770,0.7778,3620.3,3620.1,6.61035084]
[1736008732870,1.05406,3620.3,3620.1,6.61035084]
[1736008733074,0.27626,3620.2,3620.1,4.25]
[1736008733275,4.30426,3620.2,3620.1,4.25]
[1736008733972,5.37374943,3620.8,3620.1,4.25]
[1736008734270,0.27623,3620.7,3620.3,0.27625]
[1736008734477,0.27623,3620.7,3620.3,0.53625]
[1736008734875,7.25796943,3620.8,3620.5,0.27624]
[1736008735078,3.77394943,3620.8,3620.7,0.27623]
[1736008735282,4.86469564,3620.8,3620.7,0.09]
[1736008735573,4.86469564,3620.8,3620.5,2.36032084]
[1736008735879,4.86469564,3620.8,3620.5,3.15032084]
[1736008736382,1.608,3620.8,3620.5,3.15032084]
[1736008736567,1.88422,3620.8,3620.5,2.87408084]
[1736008736768,0.27623,3620.7,3620.5,0.79]
[1736008737775,0.27623,3620.6,3620.5,0.79]
[1736008738281,0.27626,3620.3,3619.9,2.08408084]
[1736008738481,3.2078,3620.2,3619.9,2.70037084]
[1736008738778,0.8174,3620.2,3619.9,2.42408084]
[1736008738978,0.8174,3620.2,3620.0,0.27628]
[1736008739176,3.2078,3621.0,3620.1,0.69069]
[1736008739380,1.6436,3621.4,3620.9,2.08408084]
[1736008739583,1.6436,3621.4,3621.2,2.36027084]
[1736008739777,4.33378227,3621.3,3621.2,2.36027084]
[1736008739984,4.33378227,3621.3,3621.2,6.09027084]
[1736008740580,4.33378227,3621.3,3621.2,9.29807084]
[1736008740786,0.8174,3621.9,3621.8,0.27614]
[1736008740981,0.8174,3621.9,3621.2,9.02188084]
[1736008740982,0.8174,3621.9,3621.7,2.36023084]
[1736008741184,0.8174,3621.9,3621.7,2.39023084]
[1736008741578,0.8174,3621.9,3621.7,2.11408084]
[1736008742079,1.09354,3621.9,3621.7,2.11408084]
[1736008742279,1.09354,3621.9,3621.7,0.03]
[1736008742280,0.8174,3621.9,3621.7,0.03]
[1736008742684,0.27614,3621.8,3621.7,0.03]
[1736008742893,1.11004,3621.8,3621.7,0.03]
[1736008743891,1.11004,3621.8,3621.4,2.08408084]
[1736008743892,0.27617,3621.5,3621.4,2.08408084]
[1736008744078,0.27616,3621.6,3621.4,0.23]
[1736008744484,0.27617,3621.5,3621.4,0.23]
[1736008746290,3.51610785,3621.5,3621.4,0.23]
[1736008746989,3.23993785,3621.5,3621.4,2.59025084]
[1736008747391,3.65435863,3621.5,3621.4,2.59025084]
[1736008747892,3.65435863,3621.5,3621.4,2.31408084]
[1736008748389,2.16160168,3621.5,3621.4,2.31408084]
[1736008749284,2.43777168,3621.5,3621.4,0.23]
[1736008750389,2.16160168,3621.5,3621.4,0.23]
[1736008750782,2.16160168,3621.5,3621.4,2.59025084]
[1736008752796,5.41311597,3622.0,3621.4,2.59025084]
[1736008752797,2.16160168,3622.1,3621.9,0.27613]
[1736008752996,2.16160168,3622.1,3622.0,2.08408084]
[1736008753192,2.16160168,3622.1,3622.0,4.55408084]
[1736008753393,2.43772168,3622.1,3622.0,4.55408084]
[1736008754093,2.16160168,3622.1,3622.0,4.55408084]
[1736008754496,0.27612,3622.1,3622.0,4.55408084]
[1736008754992,2.99960168,3622.4,3622.0,4.55408084]
[1736008755198,2.99960168,3622.4,3622.0,4.83020084]
[1736008755695,0.27611,3622.2,3622.0,4.83020084]
[1736008755895,0.27611,3622.2,3622.0,4.55408084]
[1736008756298,3.48391,3622.2,3622.0,4.55408084]
[1736008756986,3.48391,3622.2,3622.0,4.83021084]
[1736008757186,3.48391,3622.2,3622.0,4.55408084]
[1736008757597,0.27612,3622.1,3622.0,4.55408084]
[1736008757797,0.27612,3622.1,3622.0,2.47]
[1736008758701,3.48392,3622.2,3622.0,2.47]
[1736008758894,0.27612,3622.1,3622.0,2.47]
[1736008759499,5.36940168,3622.2,3622.0,2.47]
[1736008759700,2.16160168,3622.2,3622.0,4.55408084]
[1736008759896,2.16160168,3622.2,3622.1,0.27612]
[1736008760101,2.16160168,3622.2,3622.1,0.33612]
[1736008760805,1.1141,3622.4,3622.1,0.31612]
[1736008761099,0.27611,3622.3,3622.1,0.04]
[1736008761504,1.1141,3622.4,3622.1,0.31612]
[1736008761705,0.838,3622.4,3622.1,0.04]
[1736008761905,0.27611,3622.3,3622.1,0.04]
[1736008762102,0.838,3622.4,3622.0,2.08408084]
[1736008762298,0.838,3622.4,3622.1,0.27611]
[1736008762499,0.838,3622.4,3622.1,0.42611]
[1736008762700,0.838,3622.4,3622.1,0.15]
[1736008762906,0.838,3622.4,3622.2,0.27611]
[1736008763103,0.838,3622.4,3622.2,0.03]
[1736008763302,1.1141,3622.4,3622.1,0.27612]
[1736008763494,0.838,3622.4,3622.1,0.15]
[1736008763700,0.2761,3622.3,3622.1,0.15]
[1736008764111,0.838,3622.4,3622.1,0.15]
[1736008764511,1.1141,3622.4,3622.1,0.42612]
[1736008765310,0.838,3622.4,3622.1,0.15]
[1736008765510,0.27611,3622.2,3622.1,0.15]
[1736008765811,3.2078,3622.3,3621.6,2.08408084]
[1736008766011,0.27614,3621.9,3621.6,4.42023084]
[1736008766206,3.2078,3622.3,3621.6,4.14408084]
[1736008766515,0.27613,3622.0,3621.7,0.27615]
[1736008766715,0.27613,3622.0,3621.7,2.25615]
[1736008767016,3.2078,3622.3,3621.7,1.98]
[1736008767319,4.33378227,3621.9,3621.8,0.27614]
[1736008767513,4.33378227,3621.9,3621.8,0.98614]
[1736008769012,3.65863441,3621.9,3621.8,0.98614]
[1736008770418,3.65863441,3622.0,3621.8,0.71]
[1736008770718,0.27613,3621.9,3621.8,0.71]
[1736008770914,1.10573,3621.9,3621.8,0.71]
[1736008771121,1.89083,3621.9,3621.8,0.71]
[1736008771415,5.09863,3621.9,3621.8,0.71]
[1736008771618,4.8225,3621.9,3621.3,2.08408084]
[1736008771822,4.8225,3621.9,3621.4,0.27617]
[1736008771823,0.27615,3621.7,3621.4,0.27617]
[1736008772023,0.27615,3621.7,3621.4,0.64617]
[1736008772215,0.27615,3621.8,3621.4,0.64617]
[1736008772518,0.8265,3621.7,3621.4,0.64617]
[1736008772920,0.8265,3621.7,3621.5,0.27616]
[1736008773221,0.8265,3621.7,3621.5,0.53616]
[1736008773824,5.56819324,3621.7,3621.5,0.53616]
[1736008774025,5.56819324,3621.7,3621.6,0.27616]
[1736008774321,5.84434324,3621.7,3621.6,0.62]
[1736008774521,5.84434324,3621.7,3621.6,2.70408084]
[1736008774522,4.74169324,3621.7,3621.6,2.70408084]
[1736008774719,4.74169324,3621.7,3621.6,2.98024084]
[1736008775329,2.16365995,3622.0,3621.9,0.27613]
[1736008775520,2.16365995,3622.0,3621.9,5.91021084]
[1736008776633,0.27611,3622.3,3622.1,0.27612]
[1736008776919,0.27611,3622.3,3622.2,0.27611]
[1736008777226,0.2761,3622.4,3622.2,0.49611]
[1736008777827,1.05599,3622.5,3622.2,0.49611]
[1736008778328,0.2761,3622.4,3622.2,0.22]
[1736008779020,0.7799,3622.5,3622.2,0.22]
[1736008779329,0.8059,3622.3,3622.2,0.22]
[1736008780127,1.082,3622.3,3622.2,0.22]
[1736008780719,0.27614,3621.9,3621.6,2.36024084]
[1736008781023,0.27615,3621.7,3621.6,0.3]
[1736008782530,10.19761531,3621.7,3621.6,0.3]
[1736008783725,10.19761531,3621.7,3621.4,0.27617]
[1736008783726,4.50834934,3621.7,3621.0,2.08408084]
[1736008783924,0.2762,3621.1,3621.0,0.92]
[1736008785429,0.805,3621.3,3621.0,3.00408084]
[1736008785729,0.2762,3621.1,3621.0,3.00408084]
[1736008785929,0.805,3621.3,3621.0,3.00408084]
[1736008786228,4.50834934,3621.1,3621.0,3.00408084]
[1736008787727,4.78454934,3621.1,3621.0,3.00408084]
[1736008788031,4.78454934,3621.1,3621.0,0.92]
[1736008789326,5.91954934,3621.1,3621.0,0.92]
[1736008789528,0.27623,3620.7,3620.4,2.08408084]
[1736008789828,0.7602,3620.6,3620.5,0.27624]
[1736008790025,0.8113,3621.0,3620.6,0.27623]
[1736008790231,1.5715,3621.0,3620.7,2.08408084]
[1736008790432,1.5715,3621.0,3620.7,2.75408084]
[1736008790433,2.16842127,3620.8,3620.7,2.75408084]
[1736008791330,2.44464127,3620.8,3620.7,2.75408084]
[1736008792627,2.44464127,3620.8,3620.7,0.67]
[1736008793029,2.16842127,3620.8,3620.7,0.67]
[1736008793228,2.16842127,3620.8,3620.7,2.75408084]
[1736008793425,2.16842127,3620.8,3620.7,3.03031084]
[1736008795232,0.27619,3621.3,3620.7,2.75408084]
[1736008795438,0.27619,3621.3,3621.2,2.36027084]
[1736008795634,0.27619,3621.3,3621.2,2.38027084]
[1736008796034,3.2078,3621.4,3621.2,2.10408084]
[1736008796347,2.16842127,3621.5,3621.4,0.27617]
[1736008796536,2.16842127,3621.5,3621.4,4.35617]
[1736008797331,2.16842127,3621.5,3621.4,4.08]
[1736008797644,2.44459127,3621.5,3621.4,4.08]
[1736008797938,3.24559127,3621.5,3621.4,4.08]
[1736008798543,1.07717,3621.5,3621.4,4.08]
[1736008800141,3.24559127,3621.5,3621.4,4.08]
[1736008800939,2.16842127,3621.5,3621.4,4.35617]
[1736008802848,3.30342127,3621.6,3621.5,0.27617]
[1736008803145,3.30342127,3621.6,3621.5,0.32617]
[1736008803846,3.30342127,3621.6,3621.5,0.05]
[1736008804946,3.30342127,3621.6,3621.5,0.32617]
[1736008805642,1.54937994,3621.6,3621.5,0.05]
[1736008805943,1.54937994,3621.6,3620.9,1.48282]
[1736008805944,0.27619,3621.3,3621.0,0.2762]
[1736008806147,0.7787,3621.2,3621.0,1.6462]
[1736008806543,0.7787,3621.2,3621.0,1.37]
[1736008806544,1.0688,3621.1,3621.0,1.37]
[1736008806740,1.838,3621.1,3621.0,1.37]
[1736008807545,0.27623,3620.7,3620.5,2.08408084]
[1736008807841,0.27623,3620.6,3620.5,0.38]
[1736008809644,5.025131,3620.6,3620.5,0.38]
[1736008810545,5.025131,3620.6,3620.5,2.46408084]
[1736008810546,4.748901,3620.6,3620.5,2.46408084]
[1736008810847,4.748901,3620.6,3620.5,2.74032084]
[1736008811650,3.519501,3620.6,3620.5,2.74032084]